bitfinex/quotes_BTCUSD_20250604
["timestamp","ask_amount","ask_price","bid_price","bid_amount"]
[1749006781197,1.085269,105600.0,105590.0,0.7057343]
[1749006781406,1.085269,105600.0,105590.0,0.6135743]
[1749006781613,1.085269,105600.0,105590.0,1.0014143]
[1749006782042,1.085269,105600.0,105590.0,1.0014543]
[1749006782250,1.085269,105600.0,105590.0,0.7057343]
[1749006782473,1.082379,105600.0,105590.0,1.0014543]
[1749006782700,1.088379,105600.0,105590.0,1.0014543]
[1749006783540,1.10611436,105600.0,105590.0,1.0014543]
[1749006783757,1.088379,105600.0,105590.0,1.0014543]
[1749006783986,1.10611444,105600.0,105590.0,1.0014543]
[1749006784205,1.088379,105600.0,105590.0,1.0014543]
[1749006784846,1.10611428,105600.0,105590.0,1.0014543]
[1749006785053,1.088379,105600.0,105590.0,0.7057343]
[1749006785262,1.088379,105600.0,105590.0,1.0014543]
[1749006785479,1.088379,105600.0,105590.0,0.6135743]
[1749006785699,1.088379,105600.0,105590.0,1.0014943]
[1749006786980,1.10611435,105600.0,105590.0,1.0014943]
[1749006787183,1.088379,105600.0,105590.0,1.0014943]
[1749006787399,1.10611433,105600.0,105590.0,1.0014943]
[1749006787599,1.088379,105600.0,105590.0,1.0014943]
[1749006788471,1.10611435,105600.0,105590.0,0.7057343]
[1749006788688,1.10611435,105600.0,105590.0,0.60988]
[1749006788689,1.088379,105600.0,105590.0,0.60988]
[1749006788915,1.088379,105600.0,105590.0,0.90588]
[1749006789618,1.12383707,105600.0,105590.0,0.90588]
[1749006789824,1.10610838,105600.0,105590.0,0.90588]
[1749006790035,1.12383666,105600.0,105590.0,0.90588]
[1749006790263,1.10610838,105600.0,105590.0,0.90588]
[1749006790708,1.1238355,105600.0,105590.0,0.90588]
[1749006790917,1.12383548,105600.0,105590.0,0.90588]
[1749006791130,1.10610838,105600.0,105590.0,0.90588]
[1749006791791,1.12383523,105600.0,105590.0,0.90588]
[1749006792010,1.10610838,105600.0,105590.0,0.90588]
[1749006793088,1.12383746,105600.0,105590.0,0.90588]
[1749006793302,1.10610838,105600.0,105590.0,0.90588]
[1749006799138,1.12384908,105600.0,105590.0,0.90588]
[1749006799347,1.10610838,105600.0,105590.0,0.90588]
[1749006799994,1.12384908,105600.0,105590.0,0.9056]
[1749006800405,1.10610838,105600.0,105590.0,0.9056]
[1749006804305,1.10610838,105600.0,105590.0,0.90528]
[1749006807618,1.11517687,105600.0,105590.0,0.90528]
[1749006808042,1.11517687,105600.0,105590.0,0.90544]
[1749006809141,1.13291857,105600.0,105590.0,0.90544]
[1749006809355,1.11517687,105600.0,105590.0,0.90544]
[1749006809583,1.13291857,105600.0,105590.0,0.90544]
[1749006809807,1.11517687,105600.0,105590.0,0.90544]
[1749006810448,1.11518657,105600.0,105590.0,0.90544]
[1749006810879,1.22543949,105600.0,105590.0,0.60988]
[1749006811106,1.11518657,105600.0,105590.0,0.90556]
[1749006811350,1.13292886,105600.0,105590.0,0.90556]
[1749006811560,1.13292898,105600.0,105590.0,0.90556]
[1749006811779,1.11518657,105600.0,105590.0,0.90556]
[1749006812245,0.40570757,105600.0,105590.0,0.90556]
[1749006812465,1.11518657,105600.0,105590.0,0.90556]
[1749006812683,1.13292827,105600.0,105590.0,0.90556]
[1749006812903,1.11518657,105600.0,105590.0,0.90556]
[1749006813116,1.08228657,105600.0,105590.0,0.90556]
[1749006813338,1.10002803,105600.0,105590.0,0.90556]
[1749006813567,1.08228657,105600.0,105590.0,0.90556]
[1749006814407,1.1000266,105600.0,105590.0,0.90556]
[1749006814667,1.08228657,105600.0,105590.0,0.90556]
[1749006814929,1.10002522,105600.0,105590.0,0.90556]
[1749006815124,1.08228657,105600.0,105590.0,0.90556]
[1749006815378,1.10002512,105600.0,105590.0,0.90556]
[1749006815649,1.10002505,105600.0,105590.0,0.90556]
[1749006815854,1.08228657,105600.0,105590.0,0.90556]
[1749006817482,1.10002311,105600.0,105590.0,0.90556]
[1749006817714,1.10002297,105600.0,105590.0,0.90556]
[1749006817934,1.10002273,105600.0,105590.0,0.90556]
[1749006818190,1.08228272,105600.0,105590.0,0.90556]
[1749006818637,1.10001884,105600.0,105590.0,0.90556]
[1749006818868,1.08228272,105600.0,105590.0,0.90556]
[1749006822016,1.08228373,105600.0,105590.0,0.90556]
[1749006822214,1.10002047,105600.0,105590.0,0.90556]
[1749006822407,1.08228373,105600.0,105590.0,0.90556]
[1749006822631,1.10002047,105600.0,105590.0,0.90556]
[1749006822841,1.08228373,105600.0,105590.0,0.90556]
[1749006824514,1.10002056,105600.0,105590.0,0.90556]
[1749006824937,1.08228373,105600.0,105590.0,0.90556]
[1749006825153,1.10002056,105600.0,105590.0,0.90556]
[1749006825359,1.08228373,105600.0,105590.0,0.90556]
[1749006826072,1.08228378,105600.0,105590.0,0.90556]
[1749006826704,1.10002061,105600.0,105590.0,0.90556]
[1749006827146,1.08228378,105600.0,105590.0,0.90556]
[1749006827661,1.10002061,105600.0,105590.0,0.90556]
[1749006827884,1.08228378,105600.0,105590.0,0.90556]
[1749006828712,1.10002061,105600.0,105590.0,0.90556]
[1749006828971,1.08228378,105600.0,105590.0,0.90556]
[1749006829850,1.10002061,105600.0,105590.0,0.90556]
[1749006830081,1.08228392,105600.0,105590.0,0.90556]
[1749006831392,1.4376782,105600.0,105590.0,0.90556]
[1749006831583,1.45541503,105600.0,105590.0,0.90556]
[1749006831799,1.4376782,105600.0,105590.0,0.60996]
[1749006832009,1.4376782,105600.0,105590.0,0.90512]
[1749006833320,1.45541503,105600.0,105590.0,0.90512]
[1749006833897,1.4376782,105600.0,105590.0,0.90512]
[1749006834123,1.43767871,105600.0,105590.0,0.90512]
[1749006834831,1.45541553,105600.0,105590.0,0.90512]
[1749006835264,1.43767871,105600.0,105590.0,0.90512]
[1749006835478,1.45541554,105600.0,105590.0,0.90512]
[1749006835688,1.43767871,105600.0,105590.0,0.90512]
[1749006835990,1.45541552,105600.0,105590.0,0.90512]
[1749006836396,1.43767871,105600.0,105590.0,0.90512]
[1749006836618,1.45541552,105600.0,105590.0,0.90512]
[1749006836824,1.43767871,105600.0,105590.0,0.90512]
[1749006837470,1.45541552,105600.0,105590.0,0.90512]
[1749006837705,1.43767871,105600.0,105590.0,0.90512]
[1749006837931,1.45541548,105600.0,105590.0,0.90512]
[1749006838151,1.43767893,105600.0,105590.0,0.90512]
[1749006840132,1.45541576,105600.0,105590.0,0.90512]
[1749006840350,1.45541578,105600.0,105590.0,0.90512]
[1749006840571,1.43767893,105600.0,105590.0,0.90512]
[1749006841205,1.43767934,105600.0,105590.0,0.90512]
[1749006841850,1.45541653,105600.0,105590.0,0.90512]
[1749006842063,1.43767934,105600.0,105590.0,0.90512]
[1749006843367,1.45541652,105600.0,105590.0,0.90512]
[1749006843582,1.43767934,105600.0,105590.0,0.90512]
[1749006844646,1.43768361,105600.0,105590.0,0.90512]
[1749006845717,1.45542079,105600.0,105590.0,0.90512]
[1749006845925,1.43768361,105600.0,105590.0,0.90512]
[1749006846899,1.43768361,105600.0,105590.0,0.92022]
[1749006848607,1.43768373,105600.0,105590.0,0.92022]
[1749006848821,1.45542091,105600.0,105590.0,0.92022]
[1749006849024,1.43768373,105600.0,105590.0,0.92022]
[1749006849445,1.43768373,105600.0,105590.0,0.90512]
[1749006849650,1.45541924,105600.0,105590.0,0.90512]
[1749006849860,1.45541846,105600.0,105590.0,0.90512]
[1749006850065,1.43768373,105600.0,105590.0,0.90512]
[1749006850482,1.45541825,105600.0,105590.0,0.90512]
[1749006850687,1.43768373,105600.0,105590.0,0.90512]
[1749006851584,1.45541665,105600.0,105590.0,0.90512]
[1749006851714,1.43768373,105600.0,105590.0,0.90512]
[1749006851908,1.45541642,105600.0,105590.0,0.60996]
[1749006852139,1.43768373,105600.0,105590.0,0.90436]
[1749006852341,1.45541647,105600.0,105590.0,0.90436]
[1749006852547,1.4376816,105600.0,105590.0,0.90436]
[1749006852756,1.45541431,105600.0,105590.0,0.90436]
[1749006852981,1.45541435,105600.0,105590.0,0.90436]
[1749006854002,1.47314711,105600.0,105590.0,0.90436]
[1749006854214,1.45541435,105600.0,105590.0,0.90436]
[1749006854416,1.57932557,105600.0,105590.0,0.6094]
[1749006854626,1.55236593,105600.0,105590.0,0.90416]
[1749006854833,0.3714,105590.0,105570.0,0.0326]
[1749006855039,0.38047894,105590.0,105580.0,0.6318]
[1749006855249,0.38047894,105590.0,105580.0,0.90436]
[1749006855250,0.39821028,105590.0,105580.0,0.90436]
[1749006855475,0.38047894,105590.0,105580.0,0.90436]
[1749006855673,0.38261019,105590.0,105580.0,0.90436]
[1749006855881,0.36487894,105590.0,105580.0,0.90436]
[1749006856192,1.07479446,105590.0,105580.0,0.90436]
[1749006856401,1.06571552,105590.0,105580.0,0.90436]
[1749006856605,1.04991552,105590.0,105580.0,0.90436]
[1749006856827,1.05898797,105590.0,105580.0,0.90436]
[1749006856995,1.05998797,105590.0,105580.0,0.90436]
[1749006857226,1.07771955,105590.0,105580.0,0.90436]
[1749006857433,1.05998797,105590.0,105580.0,0.90436]
[1749006857616,1.05998797,105590.0,105580.0,0.92026]
[1749006858259,1.06098797,105590.0,105580.0,0.92026]
[1749006858663,1.05191552,105590.0,105580.0,0.93636]
[1749006858872,1.06964739,105590.0,105580.0,1.0322143]
[1749006859079,1.05191552,105590.0,105580.0,1.0322143]
[1749006859278,1.06964788,105590.0,105580.0,1.0322143]
[1749006859489,1.05191552,105590.0,105580.0,1.0322143]
[1749006867272,0.342,105590.0,105580.0,1.0322143]
[1749006867488,1.05191552,105590.0,105580.0,1.0322143]
[1749006869237,1.05191552,105590.0,105580.0,0.6456943]
[1749006869458,1.05191552,105590.0,105580.0,1.0317743]
[1749006872454,1.05191552,105590.0,105580.0,1.0157543]
[1749006872675,1.05191552,105590.0,105580.0,0.9998543]
[1749006872907,0.71191552,105590.0,105580.0,0.9998943]
[1749006873166,1.09887328,105590.0,105580.0,0.904]
[1749006873392,0.74391552,105590.0,105580.0,0.904]
[1749006873844,0.76164598,105590.0,105580.0,0.904]
[1749006874061,0.74391552,105590.0,105580.0,0.904]
[1749006874739,0.76164547,105590.0,105580.0,0.904]
[1749006874959,0.74391552,105590.0,105580.0,0.904]
[1749006875400,0.74584582,105590.0,105580.0,0.904]
[1749006875629,0.72811552,105590.0,105580.0,0.904]
[1749006875858,0.74584583,105590.0,105580.0,0.904]
[1749006876048,0.71191552,105590.0,105580.0,0.904]
[1749006876271,0.72964588,105590.0,105580.0,0.919]
[1749006876484,0.738715,105590.0,105580.0,0.904]
[1749006876702,0.72098472,105590.0,105580.0,0.904]
[1749006876916,0.738715,105590.0,105580.0,0.904]
[1749006877145,0.72098472,105590.0,105580.0,0.904]
[1749006877579,0.72098472,105590.0,105580.0,0.9191]
[1749006878011,0.73627492,105590.0,105580.0,0.9191]
[1749006878474,0.71854472,105590.0,105580.0,0.9356]
[1749006878915,0.7362761,105590.0,105580.0,0.9356]
[1749006879133,0.71854472,105590.0,105580.0,0.9356]
[1749006879355,0.72720811,105590.0,105580.0,0.9191]
[1749006879620,0.70947552,105590.0,105580.0,0.9352]
[1749006879867,0.72720797,105590.0,105580.0,0.9352]
[1749006880089,0.72720846,105590.0,105580.0,0.9352]
[1749006880312,0.70947552,105590.0,105580.0,0.9352]
[1749006880541,0.70947552,105590.0,105580.0,1.0310543]
[1749006880763,0.72720886,105590.0,105580.0,1.0310543]
[1749006880981,0.70947552,105590.0,105580.0,1.0310543]
[1749006881663,0.72720866,105590.0,105580.0,1.0310543]
[1749006881879,0.72720894,105590.0,105580.0,1.0310543]
[1749006882109,0.39041989,105600.0,105590.0,0.0324]
[1749006882110,0.73041989,105600.0,105590.0,0.0324]
[1749006882334,1.09444849,105600.0,105590.0,0.1282543]
[1749006882993,1.11218202,105600.0,105590.0,0.1282543]
[1749006883217,1.09444849,105600.0,105590.0,0.1282543]
[1749006883449,1.09644849,105600.0,105590.0,0.1282543]
[1749006883824,1.11418209,105600.0,105590.0,0.1282543]
[1749006884033,1.09844849,105600.0,105590.0,0.1282543]
[1749006884244,1.11618214,105600.0,105590.0,0.1282543]
[1749006884644,1.09844849,105600.0,105590.0,0.1282543]
[1749006886096,0.74937765,105600.0,105590.0,0.1282543]
[1749006891548,0.74937765,105600.0,105590.0,0.4222543]
[1749006897599,0.74937765,105600.0,105590.0,0.1118543]
[1749006897807,0.74937765,105600.0,105590.0,0.0958543]
[1749006897808,1.15316796,105600.0,105590.0,0.0958543]
[1749006898014,1.13726832,105600.0,105590.0,0.4810143]
[1749006898218,1.11953541,105600.0,105590.0,0.4810143]
[1749006898422,1.13726827,105600.0,105590.0,0.4810143]
[1749006898637,1.12206827,105600.0,105590.0,0.4810143]
[1749006898835,1.10433541,105600.0,105590.0,0.4810143]
[1749006899476,0.74937765,105600.0,105590.0,0.4810143]
[1749006899650,0.76711051,105600.0,105590.0,0.4810143]
[1749006900411,0.74937765,105600.0,105590.0,0.4810143]
[1749006900620,0.76711053,105600.0,105590.0,0.4810143]
[1749006900863,1.10433541,105600.0,105590.0,0.4810143]
[1749006901096,1.12206833,105600.0,105590.0,0.4810143]
[1749006901305,1.10433541,105600.0,105590.0,0.4810143]
[1749006901983,0.03946213,105600.0,105590.0,0.5125143]
[1749006902228,0.73441989,105600.0,105590.0,0.5125143]
[1749006902932,0.73441989,105600.0,105590.0,0.52705515]
[1749006902933,0.03746213,105600.0,105590.0,0.52705515]
[1749006903151,0.39041989,105600.0,105590.0,0.52705515]
[1749006903375,0.03546213,105600.0,105590.0,0.52705515]
[1749006903593,0.39141989,105600.0,105590.0,0.52705515]
[1749006904278,0.39241989,105600.0,105590.0,0.52705515]
[1749006905390,0.39224751,105600.0,105590.0,0.52705515]
[1749006906038,0.03746213,105600.0,105590.0,0.52705515]
[1749006906913,0.03746213,105600.0,105590.0,1.01355515]
[1749006909174,0.03746213,105600.0,105590.0,1.31355515]
[1749006909399,0.03746213,105600.0,105590.0,1.66834053]
[1749006910072,0.03746213,105600.0,105590.0,1.31355515]
[1749006910292,0.03646213,105600.0,105590.0,1.31355515]
[1749006910737,0.03646213,105600.0,105590.0,1.22195515]
[1749006910920,0.03546213,105600.0,105590.0,1.22195515]
[1749006911171,0.03546213,105600.0,105590.0,1.22295515]
[1749006915475,0.03546213,105600.0,105590.0,2.18654053]
[1749006916185,0.03546213,105600.0,105590.0,2.18554053]
[1749006916412,0.03546213,105600.0,105590.0,1.83075515]
[1749006916849,0.03546213,105600.0,105590.0,1.56027515]
[1749006917095,0.03546213,105600.0,105590.0,1.31503515]
[1749006918182,0.03546213,105600.0,105590.0,1.31703515]
[1749006918401,0.03546213,105600.0,105590.0,1.3453906]
[1749006920296,0.03546213,105600.0,105590.0,1.31703515]
[1749006920920,0.03546213,105600.0,105590.0,1.22595515]
[1749006922073,0.03546213,105600.0,105590.0,1.25435715]
[1749006923301,0.03546213,105600.0,105590.0,1.2821584]
[1749006925361,0.03546213,105600.0,105590.0,1.8908384]
[1749006927162,0.03546213,105600.0,105590.0,2.27318378]
[1749006928371,0.03546213,105600.0,105590.0,1.73442378]
[1749006928609,0.03546213,105600.0,105590.0,1.6730784]
[1749006929290,0.03546213,105600.0,105590.0,1.5820384]
[1749006932637,0.02067213,105600.0,105590.0,1.5820384]
[1749006933566,0.02067213,105600.0,105590.0,5.47427236]
[1749006933810,0.03160103,105640.0,105620.0,0.03054085]
[1749006934057,0.03160103,105640.0,105630.0,0.04880703]
[1749006934274,0.03160103,105640.0,105630.0,0.06074282]
[1749006934510,0.03160103,105640.0,105630.0,0.37118282]
[1749006934759,0.03160103,105640.0,105630.0,0.36881664]
[1749006935227,0.03208204,105640.0,105630.0,0.36881664]
[1749006935466,0.03208204,105640.0,105630.0,1.34124202]
[1749006935681,0.03208204,105640.0,105630.0,0.98845664]
[1749006936437,0.03208204,105640.0,105630.0,0.99805226]
[1749006936663,0.03208204,105640.0,105630.0,0.99905226]
[1749006936903,0.03208204,105640.0,105630.0,1.09490656]
[1749006937355,0.03208204,105640.0,105630.0,1.39490656]
[1749006940108,0.03208204,105640.0,105630.0,1.06204656]
[1749006940749,0.03208204,105640.0,105630.0,1.07714656]
[1749006940972,0.03208204,105640.0,105630.0,1.09264656]
[1749006941205,0.03208204,105640.0,105630.0,1.06248656]
[1749006941431,0.03208204,105640.0,105630.0,0.75256656]
[1749006941670,0.03208204,105640.0,105630.0,1.06252656]
[1749006942394,0.03208204,105640.0,105630.0,0.75256656]
[1749006942395,0.06348204,105640.0,105630.0,0.75256656]
[1749006942626,0.41826742,105640.0,105630.0,1.06244656]
[1749006942849,0.06348204,105640.0,105630.0,1.06244656]
[1749006944263,0.04738204,105640.0,105630.0,1.06244656]
[1749006944735,0.03208204,105640.0,105630.0,1.06244656]
[1749006946384,0.03208204,105640.0,105630.0,1.07824656]
[1749006948135,0.03208204,105640.0,105630.0,1.09454656]
[1749006948351,0.03208204,105640.0,105630.0,1.58104656]
[1749006949262,0.03208204,105640.0,105630.0,1.58036656]
[1749006961234,0.03208204,105640.0,105630.0,1.15486656]
[1749006961474,0.03208204,105640.0,105630.0,1.56366656]
[1749006962420,0.03208204,105640.0,105630.0,1.54786656]
[1749006962930,0.06318204,105640.0,105630.0,1.54754656]
[1749006963157,0.06311326,105640.0,105630.0,1.06100656]
[1749006963629,0.06311326,105640.0,105630.0,1.07700656]
[1749006963630,0.03201326,105640.0,105630.0,1.07700656]
[1749006963850,0.03085232,105640.0,105630.0,1.07700656]
[1749006964360,0.03085232,105640.0,105630.0,1.09280656]
[1749006966891,0.03085232,105640.0,105630.0,2.2877249]
[1749006966893,0.03085232,105640.0,105630.0,2.14212652]
[1749006967149,0.03085232,105640.0,105630.0,2.15229987]
[1749006967392,0.03085232,105640.0,105630.0,2.50708525]
[1749006967839,0.03085232,105640.0,105630.0,2.15229987]
[1749006968104,0.03085232,105640.0,105630.0,2.01541887]
[1749006968333,0.03085232,105640.0,105630.0,2.01441887]
[1749006968559,0.03085232,105640.0,105630.0,2.37120425]
[1749006968789,0.03085232,105640.0,105630.0,1.96545554]
[1749006969022,0.03085232,105640.0,105630.0,1.61467016]
[1749006969242,0.03085232,105640.0,105630.0,1.99761985]
[1749006969464,0.03085232,105640.0,105630.0,1.96745554]
[1749006969675,0.03085232,105640.0,105630.0,1.96945554]
[1749006970114,0.03085232,105640.0,105630.0,1.62745554]
[1749006970331,0.03085232,105640.0,105630.0,1.27267016]
[1749006970592,0.03085232,105640.0,105630.0,1.63045554]
[1749006971485,0.03085232,105640.0,105630.0,1.27567016]
[1749006971721,0.03085232,105640.0,105630.0,1.63045554]
[1749006971973,0.03085232,105640.0,105630.0,1.27567016]
[1749006972203,0.03085232,105640.0,105630.0,1.07905216]
[1749006972435,0.03085232,105640.0,105630.0,0.12438571]
[1749006972670,0.03085232,105640.0,105630.0,0.45078571]
[1749006972901,0.03085232,105640.0,105630.0,0.46532656]
[1749006973368,0.03085232,105640.0,105630.0,0.46232656]
[1749006973843,0.03085232,105640.0,105630.0,0.46332656]
[1749006974304,0.03085232,105640.0,105630.0,0.45932656]
[1749006974802,0.03085232,105640.0,105630.0,0.46132656]
[1749006975032,0.03085232,105640.0,105630.0,0.47762656]
[1749006975248,0.03085232,105640.0,105630.0,1.10510656]
[1749006977573,0.4178377,105640.0,105630.0,0.49008656]
[1749006977809,0.4178377,105640.0,105630.0,0.80078571]
[1749006979355,0.06305232,105640.0,105630.0,0.80078571]
[1749006980003,0.04725232,105640.0,105630.0,0.80078571]
[1749006980917,0.03085232,105640.0,105630.0,0.36546571]
[1749006981131,0.03085232,105640.0,105630.0,0.80014571]
[1749006985249,0.03085232,105640.0,105630.0,1.07250571]
[1749006985681,0.04665232,105640.0,105630.0,0.63782571]
[1749006985898,0.06165232,105640.0,105630.0,1.07126571]
[1749006986928,0.40165232,105640.0,105630.0,1.07126571]
[1749006988440,0.06165232,105640.0,105630.0,1.07126571]
[1749006989790,0.06165232,105640.0,105630.0,1.55776571]
[1749006990034,0.04585232,105640.0,105630.0,1.55776571]
[1749006992182,0.03085232,105640.0,105630.0,1.55596571]
[1749006992418,0.03085232,105640.0,105630.0,1.12432571]
[1749006992692,0.03085232,105640.0,105630.0,1.55588571]
[1749006993129,0.03085232,105640.0,105630.0,1.12432571]
[1749006993343,0.4179377,105640.0,105630.0,1.55560571]
[1749006993558,0.06315232,105640.0,105630.0,1.55560571]
[1749006993763,0.03085232,105640.0,105630.0,1.55560571]
[1749006994042,0.4179377,105640.0,105630.0,1.55548571]
[1749006994261,0.4179377,105640.0,105630.0,1.54581009]
[1749006994491,0.4179377,105640.0,105630.0,1.11473009]
[1749006994718,0.4179377,105640.0,105630.0,0.6163343]
[1749006994943,1.11272308,105640.0,105630.0,0.7264543]
[1749006995174,1.11272308,105640.0,105630.0,1.0472943]
[1749006995384,0.40315232,105640.0,105630.0,1.0472943]
[1749006995606,1.11272308,105640.0,105630.0,1.0462943]
[1749006996274,1.11272308,105640.0,105630.0,1.0460543]
[1749006996275,0.77567179,105640.0,105630.0,1.0460543]
[1749006996501,0.7579377,105640.0,105630.0,1.0460543]
[1749006996712,0.77567162,105640.0,105630.0,1.0440543]
[1749006996926,0.7579377,105640.0,105630.0,1.0440543]
[1749006997154,0.7599377,105640.0,105630.0,1.0440543]
[1749006997870,0.7609377,105640.0,105630.0,1.0440543]
[1749006998524,0.40615232,105640.0,105630.0,1.0440543]
[1749006998741,0.7609377,105640.0,105630.0,1.0440543]
[1749006999214,0.40615232,105640.0,105630.0,1.0440543]
[1749006999437,0.7609377,105640.0,105630.0,1.0440543]
[1749007001415,0.40615232,105640.0,105630.0,1.0440543]
[1749007001644,0.7609377,105640.0,105630.0,1.0440543]
[1749007002751,0.7609377,105640.0,105630.0,1.0432543]
[1749007003699,0.7609377,105640.0,105630.0,0.6133343]
[1749007003922,0.0312,105620.0,105590.0,0.0316]
[1749007004149,0.34,105630.0,105600.0,0.4476543]
[1749007004150,0.0312,105610.0,105600.0,0.4476543]
[1749007004381,0.38598538,105610.0,105600.0,0.7674143]
[1749007005256,0.38598538,105610.0,105600.0,0.6134143]
[1749007005465,0.38598538,105610.0,105600.0,1.0395743]
[1749007005942,0.38598538,105610.0,105600.0,1.05436554]
[1749007006159,0.38598538,105610.0,105600.0,0.62820554]
[1749007006369,0.38598538,105610.0,105600.0,1.05612554]
[1749007006589,0.69478538,105630.0,105600.0,1.05612554]
[1749007006849,0.35478538,105610.0,105600.0,1.07212554]
[1749007007062,0.35478538,105610.0,105600.0,1.07412554]
[1749007007278,0.38718538,105620.0,105600.0,1.09062554]
[1749007007492,0.35478538,105620.0,105600.0,1.08862554]
[1749007007709,0.35478538,105620.0,105600.0,1.08662554]
[1749007007925,0.72718538,105630.0,105600.0,1.08962554]
[1749007008155,0.35478538,105620.0,105600.0,1.08962554]
[1749007008365,0.0324,105630.0,105600.0,1.08662554]
[1749007008799,0.35478538,105620.0,105600.0,1.08962554]
[1749007009232,0.35478538,105620.0,105600.0,1.09162554]
[1749007009921,0.35478538,105620.0,105600.0,1.08662554]
[1749007010150,0.35478538,105620.0,105600.0,1.08862554]
[1749007010364,0.35478538,105620.0,105600.0,1.09062554]
[1749007010617,0.35478538,105620.0,105600.0,1.57712554]
[1749007010832,0.35478538,105620.0,105600.0,1.57512554]
[1749007011058,0.38718538,105630.0,105610.0,0.03286701]
[1749007011059,0.016,105630.0,105610.0,0.03286701]
[1749007011282,0.35478538,105620.0,105610.0,0.03286701]
[1749007011516,0.35478538,105620.0,105610.0,0.44728131]
[1749007011745,0.35478538,105620.0,105610.0,0.4449143]
[1749007012414,0.35478538,105620.0,105610.0,0.46045515]
[1749007012635,0.35478538,105620.0,105610.0,0.45945515]
[1749007012863,0.35478538,105630.0,105620.0,0.0152]
[1749007013086,0.35478538,105630.0,105620.0,0.2177343]
[1749007014184,0.001,105630.0,105620.0,0.2177343]
[1749007014408,0.35578538,105630.0,105620.0,0.2025343]
[1749007014656,0.35678538,105630.0,105620.0,0.2025343]
[1749007015542,0.35678538,105630.0,105620.0,0.5203743]
[1749007016427,0.35678538,105630.0,105620.0,1.0068743]
[1749007017976,0.71157076,105630.0,105620.0,1.0068743]
[1749007020095,0.35678538,105630.0,105620.0,1.0068743]
[1749007020992,0.37328538,105630.0,105620.0,1.0068743]
[1749007021435,0.72807076,105630.0,105620.0,1.0068743]
[1749007021660,0.72807076,105630.0,105620.0,0.9341543]
[1749007021877,0.74447076,105630.0,105620.0,1.2508343]
[1749007025195,0.0349,105630.0,105620.0,1.2508343]
[1749007025442,0.74447076,105630.0,105620.0,1.2508343]
[1749007026088,0.0349,105630.0,105620.0,1.2508343]
[1749007026297,0.74447076,105630.0,105620.0,1.2508343]
[1749007026790,0.72807076,105630.0,105620.0,1.2508343]
[1749007027007,0.35678538,105630.0,105620.0,1.5384743]
[1749007028296,0.35678538,105630.0,105620.0,1.5548743]
[1749007028516,0.002,105630.0,105620.0,1.5548743]
[1749007028987,0.35678538,105630.0,105620.0,1.5548743]
[1749007030387,0.69678538,105630.0,105620.0,1.5548743]
[1749007032386,0.69678538,105630.0,105620.0,1.5384743]
[1749007032609,0.35678538,105630.0,105620.0,1.5384743]
[1749007034020,0.0176,105630.0,105620.0,1.5186343]
[1749007034286,0.37238538,105630.0,105620.0,1.0321343]
[1749007034503,0.35678538,105630.0,105620.0,1.0321343]
[1749007034939,0.002,105630.0,105620.0,1.0629343]
[1749007035158,0.35678538,105630.0,105620.0,1.0629343]
[1749007035378,0.002,105630.0,105620.0,1.0629343]
[1749007036053,0.002,105630.0,105620.0,1.56397515]
[1749007036502,0.002,105630.0,105620.0,1.29153515]
[1749007036941,0.002,105630.0,105620.0,1.04637515]
[1749007037369,0.002,105630.0,105620.0,0.94249515]
[1749007045390,0.002,105630.0,105620.0,1.56389515]
[1749007045861,0.35678538,105630.0,105620.0,1.14525515]
[1749007046119,0.35678538,105630.0,105620.0,1.54627515]
[1749007046345,0.35678538,105630.0,105620.0,1.25805515]
[1749007048713,0.35678538,105630.0,105620.0,1.25773515]
[1749007048930,0.35678538,105630.0,105620.0,1.27283515]
[1749007050585,0.35678538,105630.0,105620.0,1.28813515]
[1749007051025,0.002,105630.0,105620.0,1.04297515]
[1749007051708,0.002,105630.0,105620.0,0.93913515]
[1749007053357,0.35903667,105640.0,105620.0,0.62729515]
[1749007053586,0.35903667,105640.0,105630.0,0.1109543]
[1749007054713,0.36003667,105640.0,105630.0,0.1109543]
[1749007055259,0.35903667,105640.0,105630.0,0.1109543]
[1749007055515,0.36103667,105640.0,105630.0,0.7322743]
[1749007056043,0.36203667,105640.0,105630.0,0.7322743]
[1749007056568,0.36203667,105640.0,105630.0,0.7478743]
[1749007057082,0.00725129,105640.0,105630.0,0.7478743]
[1749007057370,0.36203667,105640.0,105630.0,0.7478743]
[1749007057840,0.36203667,105640.0,105630.0,1.2343743]
[1749007058362,0.36203667,105640.0,105630.0,1.2187743]
[1749007058870,0.36203667,105640.0,105630.0,1.5139543]
[1749007059338,0.39243667,105640.0,105630.0,1.2005943]
[1749007059566,0.39243667,105640.0,105630.0,1.5107143]
[1749007059989,0.39243667,105640.0,105630.0,1.2005943]
[1749007060224,0.39243667,105640.0,105630.0,1.5105543]
[1749007060225,0.36203667,105640.0,105630.0,1.5105543]
[1749007060663,0.00725129,105640.0,105630.0,1.5105543]
[1749007060891,0.36203667,105640.0,105630.0,1.5105543]
[1749007061092,0.37723667,105640.0,105630.0,1.5105543]
[1749007062106,0.39333667,105640.0,105630.0,1.5105543]
[1749007062348,0.37723667,105640.0,105630.0,1.5105543]
[1749007063455,0.02245129,105640.0,105630.0,1.5105543]
[1749007063677,0.36203667,105640.0,105630.0,1.5105543]
[1749007066325,0.37853667,105640.0,105630.0,1.5105543]
[1749007067478,0.39473667,105640.0,105630.0,1.5105543]
[1749007069292,0.37853667,105640.0,105630.0,1.5105543]
[1749007069516,0.36203667,105640.0,105630.0,1.5105543]
[1749007071158,0.00725129,105640.0,105630.0,1.5105543]
[1749007071410,0.36203667,105640.0,105630.0,1.5105543]
[1749007072212,0.36203667,105640.0,105630.0,1.2005943]
[1749007072688,0.39413667,105640.0,105630.0,1.5097543]
[1749007074086,0.37763667,105640.0,105630.0,1.5097543]
[1749007074733,0.39413667,105640.0,105630.0,1.5097543]
[1749007074954,0.36203667,105640.0,105630.0,1.5097543]
[1749007075175,0.36203667,105640.0,105630.0,1.5259543]
[1749007075384,0.36203667,105640.0,105630.0,1.5417543]
[1749007081157,0.00725129,105640.0,105630.0,1.5417543]
[1749007081380,0.36203667,105640.0,105630.0,1.5417543]
[1749007083777,0.00725129,105640.0,105630.0,1.5417543]
[1749007084027,0.36203667,105640.0,105630.0,1.5417543]
[1749007085360,0.70203667,105640.0,105630.0,1.5417543]
[1749007087098,0.36203667,105640.0,105630.0,1.5417543]
[1749007088213,0.36203667,105640.0,105630.0,1.2325943]
[1749007088442,0.36203667,105640.0,105630.0,1.5241943]
[1749007088671,0.36203667,105640.0,105630.0,1.5079943]
[1749007088896,0.36203667,105640.0,105630.0,1.5242943]
[1749007090695,0.00725129,105640.0,105630.0,1.5242943]
[1749007090921,0.36203667,105640.0,105630.0,1.5242943]
[1749007091144,0.36203667,105640.0,105630.0,1.5401943]
[1749007095506,0.36203667,105640.0,105630.0,1.2327943]
[1749007095750,0.36203667,105640.0,105630.0,1.5398743]